bitfinex/quotes_SOLUSD_20251116
["timestamp","ask_amount","ask_price","bid_price","bid_amount"]
[1763300978470,7.88417181,139.39,139.32,7.17766951]
[1763300978679,0.71,139.4,139.33,22.8912]
[1763300979279,0.71,139.4,139.33,22.6512]
[1763300979606,0.2,139.41,139.34,10.02882769]
[1763300979802,0.91,139.41,139.34,10.02882769]
[1763300979986,0.2,139.41,139.35,10.02882769]
[1763300980182,0.2,139.41,139.37,22.6512]
[1763300980393,0.2,139.41,139.4,29.82480114]
[1763300980588,0.2,139.41,139.4,39.85362883]
[1763300980917,0.71,139.48,139.41,9.78882769]
[1763300981118,0.71,139.48,139.41,10.02882769]
[1763300981295,0.71,139.5,139.42,0.24]
[1763300981985,0.2,139.58,139.44,22.6512]
[1763300982322,0.71,139.57,139.48,22.6512]
[1763300982513,0.71,139.57,139.49,25.09140439]
[1763300982826,7.87490261,139.57,139.48,22.6512]
[1763300983122,0.71,139.56,139.48,29.82061773]
[1763300983316,0.71,139.56,139.46,22.6512]
[1763300984191,23.3612,139.56,139.46,22.8912]
[1763300984685,0.71,139.55,139.47,7.17000071]
[1763300986083,9.78882769,139.54,139.43,30.06275975]
[1763300986610,7.16743119,139.52,139.43,25.3417039]
[1763300986821,7.16743119,139.52,139.44,0.24]
[1763300987028,0.71,139.51,139.44,10.02882769]
[1763300987330,0.71,139.51,139.45,0.24]
[1763300987999,0.71,139.51,139.46,7.17051484]
[1763300988501,7.87796683,139.51,139.46,7.17051484]
[1763300988702,0.71,139.51,139.46,7.17051484]
[1763300988889,7.16748481,139.52,139.45,7.17091003]
[1763300988890,0.71,139.5,139.45,7.17091003]
[1763300990818,0.71,139.52,139.46,0.24]
[1763300991194,17.91698277,139.54,139.46,10.02882769]
[1763300991195,0.71,139.54,139.46,10.02882769]
[1763300991711,0.71,139.54,139.47,0.24]
[1763300991902,7.1669175,139.53,139.45,18.1675726]
[1763300992299,0.71,139.52,139.46,32.68002769]
[1763300992704,0.71,139.54,139.47,0.24]
[1763300994219,0.71,139.54,139.49,32.44002769]
[1763300994599,0.71,139.54,139.49,32.68002769]
[1763300995101,7.16540036,139.56,139.49,32.44002769]
[1763300995302,0.71,139.54,139.49,32.68002769]
[1763300995611,0.2,139.58,139.5,7.16845878]
[1763300995818,0.71,139.54,139.5,7.16845878]
[1763300996012,0.71,139.54,139.49,22.6512]
[1763300996222,0.71,139.54,139.49,22.8912]
[1763300996815,0.71,139.54,139.49,22.6512]
[1763300997135,0.71,139.54,139.5,7.16845878]
[1763301001039,0.71,139.54,139.49,29.8199916]
[1763301001536,7.87645091,139.54,139.49,22.6512]
[1763301001717,0.71,139.54,139.49,29.8201642]
[1763301003025,7.87661112,139.54,139.42,10.02882769]
[1763301003219,0.71,139.54,139.45,22.6512]
[1763301003541,7.87646125,139.54,139.42,25.10400229]
[1763301003738,32.44002769,139.53,139.42,25.10400229]
[1763301003912,9.78882769,139.51,139.42,25.10400229]
[1763301004113,0.71,139.5,139.42,47.75520229]
[1763301004321,7.16897268,139.49,139.39,0.24]
[1763301004727,0.71,139.48,139.4,22.6512]
[1763301005519,7.87982489,139.48,139.4,29.82478571]
[1763301005754,25.80354155,139.48,139.38,7.17422833]
[1763301005958,0.71,139.47,139.38,30.06542833]
[1763301006410,0.71,139.47,139.39,10.02882769]
[1763301006609,0.71,139.47,139.38,47.76200459]
[1763301006822,16.95574519,139.53,139.42,22.6512]
[1763301007049,0.71,139.49,139.42,22.6512]
[1763301007339,0.71,139.49,139.43,10.02882769]
[1763301007509,0.71,139.49,139.44,25.1004016]
[1763301007709,9.78882769,139.53,139.44,25.3404016]
[1763301007916,0.71,139.5,139.44,25.1004016]
[1763301008767,0.71,139.5,139.44,7.17154331]
[1763301009123,23.3612,139.5,139.42,22.6512]
[1763301009422,23.3612,139.5,139.41,29.82425693]
[1763301009621,25.80140439,139.49,139.41,47.75697337]
[1763301009818,25.80140439,139.49,139.41,7.17305693]
[1763301010022,0.71,139.48,139.41,7.17305693]
[1763301010419,0.71,139.48,139.39,50.37493099]
[1763301010841,0.71,139.48,139.4,7.17360114]
[1763301011052,32.44002769,139.47,139.38,7.17444949]
[1763301011253,0.71,139.46,139.38,7.41444949]
[1763301011547,7.17102904,139.45,139.38,7.41444949]
[1763301012051,0.71,139.44,139.38,7.41444949]
[1763301012640,0.71,139.44,139.38,7.17444949]
[1763301012857,0.71,139.44,139.38,25.11102575]
[1763301013221,0.71,139.44,139.39,22.6512]
[1763301013645,7.88163821,139.44,139.39,22.6512]
[1763301014160,7.17095683,139.46,139.39,29.82528528]
[1763301014460,0.69,139.45,139.39,29.82528528]
[1763301015266,0.69,139.45,139.38,7.17454091]
[1763301015442,9.78882769,139.44,139.37,22.6512]
[1763301015646,9.78882769,139.44,139.36,17.24]
[1763301015647,25.10220181,139.43,139.36,17.24]
[1763301015851,25.80220181,139.43,139.36,17.24]
[1763301016163,0.7,139.42,139.36,17.24]
[1763301016642,25.10220181,139.43,139.36,17.24]
[1763301016962,144.27752615,139.46,139.37,10.02882769]
[1763301017266,0.7,139.45,139.37,10.02882769]
[1763301017566,0.7,139.45,139.38,0.24]
[1763301018127,0.7,139.45,139.37,32.44002769]
[1763301018444,0.7,139.45,139.38,0.24]
[1763301019133,7.87108418,139.45,139.39,7.17411579]
[1763301020443,0.7,139.45,139.39,25.34940526]
[1763301020657,0.7,139.44,139.39,25.10940526]
[1763301021170,0.7,139.44,139.37,32.68002769]
[1763301021342,7.87161842,139.44,139.38,7.1746305]
[1763301021552,0.7,139.43,139.38,7.1746305]
[1763301021764,0.7,139.43,139.37,29.82623181]
[1763301022345,0.7,139.43,139.37,47.76409505]
[1763301022868,23.3512,139.45,139.38,10.02882769]
[1763301023032,0.7,139.44,139.38,9.78882769]
[1763301023232,0.7,139.44,139.39,7.17411579]
[1763301023463,0.7,139.46,139.39,7.41411579]
[1763301023668,0.7,139.46,139.4,10.02882769]
[1763301024551,22.6512,139.48,139.41,0.24]
[1763301024872,0.7,139.48,139.41,0.24]
[1763301025170,0.7,139.5,139.43,22.6512]
[1763301025340,0.7,139.5,139.44,25.1004016]
[1763301025536,0.7,139.5,139.44,25.3404016]
[1763301025748,0.7,139.52,139.45,10.02882769]
[1763301026955,0.7,139.52,139.44,7.17154331]
[1763301027143,0.7,139.52,139.45,9.78882769]
[1763301027346,0.7,139.52,139.46,7.17051484]
[1763301027568,7.86747546,139.52,139.46,7.17051484]
[1763301028076,0.7,139.51,139.46,7.17051484]
[1763301028443,0.7,139.51,139.47,9.78882769]
[1763301028647,0.7,139.51,139.46,7.17051484]
[1763301029674,0.7,139.51,139.45,25.09786189]
[1763301030074,7.86806921,139.51,139.45,25.09786189]
[1763301030380,30.51926921,139.51,139.4,7.17360114]
[1763301030562,0.7,139.5,139.41,9.78882769]
[1763301030763,0.7,139.5,139.41,32.44002769]
[1763301031485,7.16897268,139.49,139.41,57.54512277]
[1763301031868,0.7,139.48,139.41,57.54512277]
[1763301032184,0.7,139.48,139.41,39.61311426]
[1763301032386,0.7,139.48,139.41,57.7858307]
[1763301032572,0.7,139.48,139.42,0.24]
[1763301033177,0.7,139.51,139.45,9.78882769]
[1763301033484,0.7,139.51,139.46,25.33680194]
[1763301034289,0.7,139.51,139.46,25.09680194]
[1763301035297,0.7,139.51,139.46,25.33680194]
[1763301035484,0.7,139.51,139.46,25.09680194]
[1763301035870,0.7,139.51,139.46,25.33680194]
[1763301036374,0.7,139.51,139.46,25.09680194]
[1763301037295,0.7,139.51,139.46,25.33680194]
[1763301037797,0.7,139.51,139.47,9.78882769]
[1763301038996,0.7,139.51,139.47,34.88380194]
[1763301039778,0.7,139.51,139.47,7.16997246]
[1763301039980,0.7,139.54,139.48,10.02882769]
[1763301040182,0.7,139.56,139.48,10.02882769]
[1763301040385,0.7,139.56,139.49,0.24]
[1763301040595,0.7,139.56,139.51,9.78882769]
[1763301041302,0.9,139.58,139.52,0.24]
[1763301042606,0.9,139.58,139.54,9.78882769]
[1763301042903,0.9,139.58,139.53,7.1669175]
[1763301043094,0.7,139.57,139.52,7.16731397]
[1763301043784,0.7,139.57,139.51,25.08766334]
[1763301044103,0.7,139.57,139.52,9.78882769]
[1763301044913,0.2,139.58,139.54,9.78882769]
[1763301045406,0.91,139.58,139.54,9.78882769]
[1763301046735,0.2,139.58,139.55,25.08061626]
[1763301047328,0.2,139.58,139.56,9.78882769]
[1763301047543,0.2,139.58,139.56,10.02882769]
[1763301047714,0.2,139.58,139.55,25.08061626]
[1763301047916,0.91,139.58,139.55,25.08061626]
[1763301048233,0.2,139.58,139.55,25.08061626]
[1763301048836,0.2,139.58,139.55,18.1547259]
[1763301049034,0.2,139.58,139.56,9.78882769]
[1763301049828,0.2,139.58,139.57,0.24]
[1763301050916,0.2,139.58,139.57,17.19369119]
[1763301052464,1e-08,139.58,139.57,17.19369119]
[1763301053015,1e-08,139.58,139.57,16.95369119]
[1763301053347,1e-08,139.58,139.56,22.6512]
[1763301053531,0.71000001,139.58,139.56,9.78882769]
[1763301053743,1e-08,139.58,139.56,9.78882769]
[1763301053945,1e-08,139.58,139.56,16.95410993]
[1763301058057,1e-08,139.58,139.57,32.68002769]
[1763301060071,1e-08,139.58,139.57,39.60489119]
[1763301061280,1e-08,139.58,139.57,39.84489119]
[1763301062441,1e-08,139.58,139.57,40.56137754]
[1763301062658,1e-08,139.62,139.61,32.44002769]
[1763301063670,1e-08,139.62,139.61,32.68002769]
[1763301064063,1e-08,139.62,139.61,39.84283837]
[1763301064656,1e-08,139.65,139.64,32.44002769]
[1763301065162,1e-08,139.65,139.64,32.68002769]
[1763301065769,0.2,139.66,139.65,10.02882769]
[1763301065770,1e-08,139.66,139.65,10.02882769]
[1763301065974,0.2,139.75,139.67,39.59976134]
[1763301066282,0.2,139.75,139.74,32.44002769]
[1763301066459,0.91,139.75,139.74,22.6512]
[1763301066658,0.2,139.75,139.74,22.6512]
[1763301067065,0.91,139.75,139.71,22.6512]
[1763301067555,0.71,139.74,139.71,22.6512]
[1763301067751,0.71,139.74,139.7,22.6512]
[1763301068570,0.71,139.74,139.66,9.78882769]
[1763301069073,7.86622202,139.74,139.68,22.6512]
[1763301069477,0.71,139.73,139.68,22.6512]
[1763301070056,0.71,139.73,139.68,29.810142]
[1763301070252,0.71,139.73,139.68,22.6512]
[1763301070558,0.71,139.73,139.69,22.6512]
[1763301070872,0.71,139.73,139.7,22.6512]
[1763301074364,0.71,139.73,139.66,9.78882769]
[1763301074553,0.71,139.73,139.66,32.44002769]
[1763301075264,7.86679179,139.73,139.63,17.2]
[1763301075582,25.75843996,139.73,139.66,22.6512]
[1763301075760,0.68,139.72,139.66,22.6512]
[1763301076180,0.68,139.72,139.63,17.2]
[1763301076181,7.15819613,139.7,139.63,17.2]
[1763301076380,7.15819613,139.7,139.63,39.8512]
[1763301076579,0.68,139.69,139.61,7.16272367]
[1763301076879,0.68,139.69,139.61,29.81392367]
[1763301077274,0.68,139.69,139.61,47.72095038]
[1763301078278,0.68,139.69,139.61,25.06975038]
[1763301078479,7.83890706,139.69,139.61,22.6512]
[1763301078877,0.68,139.68,139.61,22.6512]
[1763301080595,7.15973365,139.67,139.61,22.6512]
[1763301080768,7.8393858,139.68,139.61,22.6512]
[1763301080964,0.2,139.75,139.65,34.44002768]
[1763301081164,0.2,139.75,139.74,22.6512]
[1763301081385,0.2,139.75,139.69,0.24]
[1763301081571,0.88,139.75,139.7,9.78882769]
[1763301082186,0.2,139.75,139.7,10.02882769]
[1763301082565,0.2,139.75,139.71,7.15768377]
[1763301082887,0.2,139.75,139.71,25.0518932]
[1763301083291,0.88,139.75,139.7,16.94690201]
[1763301083500,0.88,139.75,139.7,29.80927432]
[1763301083665,0.68,139.74,139.7,29.80927432]
[1763301083865,0.68,139.74,139.7,22.6512]
[1763301084080,0.68,139.74,139.7,29.80926419]
[1763301084970,0.68,139.74,139.66,9.25437679]
[1763301085173,0.68,139.74,139.7,22.6512]
[1763301085577,0.68,139.74,139.67,34.84789548]
[1763301085776,0.68,139.74,139.68,22.6512]
[1763301086906,7.83636947,139.74,139.68,22.6512]
[1763301087079,7.83636947,139.74,139.68,7.1592142]
[1763301087274,0.68,139.73,139.68,7.1592142]
[1763301087468,0.68,139.73,139.67,22.6512]
[1763301087869,22.6512,139.71,139.62,0.24]
[1763301088093,0.68,139.73,139.63,8.58]
[1763301088292,0.68,139.72,139.64,9.78882769]
[1763301088795,0.68,139.72,139.65,7.16075904]
[1763301088796,7.83762003,139.72,139.65,7.16075904]
[1763301088990,7.83762003,139.72,139.66,8.58]
[1763301089180,0.68,139.71,139.66,8.58]
[1763301090680,0.68,139.71,139.66,15.74016388]
[1763301090875,0.68,139.71,139.66,8.58]
[1763301091079,0.68,139.71,139.66,15.74024227]
[1763301092706,7.83807294,139.71,139.66,8.58]
[1763301092908,9.78882769,139.7,139.57,10.02882769]
[1763301093078,9.78882769,139.7,139.58,8.82]
[1763301093079,10.46882769,139.7,139.58,8.82]
[1763301093400,0.68,139.69,139.6,22.6512]
[1763301093576,0.68,139.69,139.61,8.58]
[1763301094394,7.15922107,139.68,139.61,8.58]
[1763301094783,0.68,139.67,139.61,8.58]
[1763301096278,0.68,139.67,139.61,15.74279485]
[1763301096908,7.839778,139.67,139.61,15.74279485]
[1763301097312,0.68,139.66,139.61,15.74279485]
[1763301097890,0.68,139.66,139.61,8.58]
[1763301098405,0.68,139.66,139.61,15.74237541]
[1763301098614,0.68,139.66,139.61,8.58]
[1763301099000,7.16075904,139.65,139.61,8.58]
[1763301099409,0.68,139.64,139.61,8.58]
[1763301100114,0.68,139.64,139.59,7.16375353]
[1763301100324,0.68,139.64,139.6,8.58]
[1763301100994,7.84137133,139.64,139.6,8.58]
[1763301101518,7.84137133,139.64,139.55,7.165697]
[1763301101816,0.68,139.63,139.56,8.58]
[1763301102920,7.16229766,139.62,139.56,8.58]
[1763301103620,0.66,139.61,139.56,8.58]
[1763301104391,0.66,139.61,139.54,8.58]
[1763301105329,25.07163323,139.6,139.54,8.58]
[1763301105820,0.66,139.59,139.54,8.58]
[1763301106810,0.66,139.59,139.54,8.82]
[1763301107527,0.66,139.59,139.54,15.98638198]
[1763301108528,7.16181264,139.63,139.55,22.6512]
[1763301108824,0.66,139.62,139.56,9.78882769]
[1763301109030,0.66,139.62,139.56,10.02882769]
[1763301109405,0.66,139.62,139.57,7.1648635]
[1763301109804,0.66,139.62,139.57,7.4048635]
[1763301111826,0.66,139.62,139.57,7.1648635]
[1763301112335,0.66,139.62,139.56,7.16504109]
[1763301113328,7.8223664,139.62,139.55,29.81689877]
[1763301113505,7.8223664,139.62,139.56,22.6512]
[1763301113819,0.66,139.61,139.56,29.81655791]
[1763301114217,0.66,139.61,139.56,29.81656789]
[1763301122537,0.66,139.61,139.56,22.6512]
[1763301122538,7.82294316,139.61,139.56,22.6512]
[1763301122870,0.66,139.61,139.53,0.24]
[1763301123029,0.66,139.6,139.54,0.24]
[1763301123529,0.66,139.6,139.53,9.78882769]
[1763301124145,0.66,139.6,139.52,22.6512]
[1763301124351,0.66,139.6,139.54,22.6512]
[1763301124521,7.16383695,139.59,139.52,29.81863119]
[1763301124924,7.16383695,139.59,139.5,79.72069177]
[1763301124925,0.66,139.58,139.5,7.1684549]
[1763301125351,0.66,139.58,139.5,29.8196549]
[1763301126357,0.66,139.58,139.5,47.98080185]
[1763301126952,25.73546111,139.58,139.47,0.1]
[1763301127171,9.78882769,139.57,139.47,7.26997531]
[1763301127446,0.66,139.57,139.48,22.8912]
[1763301127648,0.66,139.56,139.48,22.8912]
[1763301128037,0.66,139.56,139.49,7.16897268]
[1763301128038,7.8254125,139.56,139.49,7.16897268]
[1763301128365,7.8254125,139.56,139.48,29.82049401]
[1763301128533,0.66,139.55,139.47,0.1]
[1763301129534,32.44002769,139.54,139.47,0.1]
[1763301130161,0.66,139.53,139.47,0.1]
[1763301131167,7.82695268,139.53,139.47,0.1]
[1763301131832,0.66,139.52,139.47,0.1]
[1763301132349,0.66,139.52,139.47,7.27000071]
[1763301132868,7.82765138,139.52,139.47,0.1]
[1763301133240,0.66,139.51,139.47,0.1]
[1763301134333,25.08960573,139.5,139.47,0.1]
[1763301134547,25.08960573,139.5,139.42,0.1]
[1763301134548,9.78882769,139.47,139.42,0.1]
[1763301134948,0.69,139.46,139.42,0.1]
[1763301136133,0.69,139.46,139.36,0.1]
[1763301136337,9.78882769,139.44,139.36,0.1]
[1763301136758,9.78882769,139.42,139.36,0.1]
[1763301137259,0.69,139.41,139.36,0.1]
[1763301138371,0.69,139.41,139.36,7.27566016]
[1763301138670,0.69,139.41,139.36,7.71566016]
[1763301138848,0.69,139.41,139.36,7.27566016]
[1763301141651,22.6512,139.44,139.37,0.44]
[1763301141980,0.69,139.44,139.37,0.44]
[1763301142340,0.69,139.44,139.38,7.1746305]
[1763301142860,0.69,139.44,139.38,7.6146305]
[1763301144141,7.86155064,139.44,139.38,7.1746305]
[1763301144343,0.69,139.44,139.38,7.6146305]
[1763301145073,7.86155419,139.44,139.36,7.71515345]
[1763301145284,7.86155419,139.44,139.36,25.65430385]
[1763301145448,23.3412,139.43,139.36,7.27515345]
[1763301145776,23.3412,139.43,139.36,7.27563895]
[1763301145950,0.69,139.42,139.36,0.1]
[1763301146384,7.17308657,139.41,139.36,0.1]
[1763301146776,0.69,139.4,139.36,0.1]
[1763301148400,7.86381211,139.4,139.36,0.1]
[1763301148897,0.69,139.39,139.36,0.1]
[1763301150472,7.1746305,139.38,139.36,0.1]
[1763301150699,0.69,139.39,139.36,0.1]
[1763301152906,0.69,139.42,139.37,22.6512]
[1763301153107,0.69,139.44,139.37,22.6512]
[1763301153319,0.69,139.44,139.38,0.44]
[1763301154036,0.69,139.44,139.39,7.17411579]
[1763301154330,0.69,139.46,139.39,25.10940526]
[1763301154631,0.69,139.49,139.42,22.6512]
[1763301154835,0.69,139.49,139.43,0.44]
[1763301155048,0.69,139.49,139.42,22.6512]
[1763301155540,0.69,139.49,139.41,0.44]
[1763301156036,7.16948666,139.48,139.41,7.61274256]
[1763301156526,0.69,139.47,139.41,7.61274256]
[1763301156723,0.69,139.47,139.4,22.6512]
[1763301157022,23.3412,139.47,139.38,7.1746207]
[1763301157528,0.69,139.46,139.38,7.1746207]
[1763301157719,0.69,139.46,139.38,7.6146207]
[1763301158309,7.17102904,139.45,139.38,7.6146207]
[1763301158715,0.69,139.44,139.38,7.6146207]
[1763301159857,0.69,139.47,139.41,22.6512]
[1763301160346,0.69,139.48,139.43,7.17205766]
[1763301160514,0.69,139.48,139.41,22.6512]
[1763301160717,0.69,139.48,139.41,29.8238413]
[1763301161449,0.69,139.48,139.41,30.2638413]
[1763301161633,0.69,139.49,139.42,0.44]
[1763301162334,7.85902126,139.49,139.43,7.17205766]
[1763301162845,7.85902126,139.49,139.42,0.44]
[1763301162846,0.69,139.48,139.42,7.61241559]
[1763301163931,0.69,139.48,139.41,29.82418749]
[1763301164432,7.17000071,139.47,139.41,29.82418749]
[1763301164625,7.17000071,139.47,139.37,17.93771205]
[1763301164947,0.66,139.46,139.4,22.6512]
[1763301166048,0.66,139.46,139.4,23.0912]
[1763301166260,0.66,139.46,139.4,22.6512]
[1763301166466,7.17102904,139.45,139.4,22.6512]
[1763301166978,0.66,139.46,139.41,0.44]
[1763301168371,0.66,139.46,139.41,7.61274164]
[1763301168940,0.66,139.46,139.41,7.17274164]
[1763301170360,0.66,139.48,139.42,0.44]
[1763301170661,32.44002769,139.5,139.42,0.44]
[1763301170662,0.66,139.47,139.42,7.61208359]
[1763301171950,0.66,139.47,139.42,7.17208359]
[1763301172851,7.17051484,139.46,139.4,23.0912]
[1763301173243,7.83051484,139.46,139.4,23.0912]
[1763301174470,7.83051484,139.46,139.4,30.26461524]
[1763301175049,0.66,139.46,139.4,30.26461524]
[1763301175248,0.66,139.46,139.4,48.1986181]
[1763301175569,0.66,139.46,139.41,0.44]
[1763301177192,0.66,139.46,139.42,7.17257208]
[1763301177498,0.66,139.51,139.42,7.17257208]
[1763301177650,0.66,139.51,139.43,32.88002769]
[1763301177851,0.66,139.51,139.44,0.44]
[1763301179163,7.82805917,139.51,139.45,7.17102904]
[1763301179363,0.66,139.51,139.45,7.17102904]
[1763301179569,0.66,139.5,139.44,7.17133617]
[1763301179758,0.66,139.5,139.43,40.58049313]
[1763301179759,0.66,139.5,139.43,22.6512]
[1763301180172,0.66,139.5,139.43,29.82309581]
[1763301180388,0.66,139.5,139.43,22.6512]
[1763301180696,0.66,139.5,139.41,7.17298559]
[1763301180977,0.66,139.5,139.41,7.61298559]
[1763301181353,7.16897268,139.49,139.41,7.61298559]
[1763301181566,0.66,139.48,139.41,7.61298559]
[1763301182901,0.66,139.48,139.4,32.44002769]
[1763301182902,7.17000071,139.47,139.4,22.6512]
[1763301183209,7.17000071,139.47,139.39,7.61378149]
[1763301183393,0.66,139.46,139.39,7.61378149]
[1763301184193,0.66,139.46,139.38,22.6512]
[1763301185079,7.17102904,139.45,139.38,29.82576211]
[1763301185511,0.66,139.44,139.38,29.82576211]
[1763301186692,0.66,139.44,139.38,22.6512]
[1763301186994,0.66,139.44,139.36,7.27552493]
[1763301187197,7.17205766,139.43,139.36,7.27552493]
[1763301187700,0.66,139.42,139.36,7.27552493]
[1763301188397,0.66,139.45,139.37,0.44]
[1763301188815,0.66,139.45,139.39,22.6512]
[1763301189014,0.66,139.47,139.4,22.6512]
[1763301189219,0.66,139.47,139.41,7.61308657]
[1763301189692,7.83003849,139.47,139.41,7.61308657]
[1763301189892,22.6512,139.48,139.41,7.61308657]
[1763301190108,0.66,139.46,139.41,7.61308657]
[1763301190326,0.66,139.51,139.42,10.22882769]
[1763301190507,0.66,139.5,139.43,22.6512]
[1763301190824,0.66,139.5,139.43,23.0912]
[1763301191129,9.98882769,139.56,139.41,25.10580301]
[1763301191130,7.16681548,139.54,139.46,7.17051484]
[1763301191433,0.66,139.54,139.46,25.09680194]
[1763301191733,0.66,139.54,139.47,0.44]
[1763301192321,7.82654394,139.54,139.47,0.44]
[1763301192706,0.66,139.53,139.47,0.44]
[1763301193509,0.66,139.53,139.48,7.16948666]
[1763301193722,7.8269748,139.53,139.48,7.16948666]
[1763301193933,7.8269748,139.53,139.47,0.44]
[1763301194096,0.71,139.52,139.45,30.26184582]
[1763301194414,0.71,139.52,139.46,0.44]
[1763301195628,0.66,139.53,139.47,7.17000071]
[1763301196011,0.66,139.53,139.46,0.44]
[1763301197307,7.82723493,139.53,139.46,7.61035302]
[1763301197709,0.66,139.52,139.46,7.61035302]
[1763301198424,0.66,139.52,139.46,0.44]
[1763301198425,7.82774675,139.52,139.46,0.44]
[1763301198631,7.82774675,139.52,139.45,22.6512]
[1763301198805,0.72,139.51,139.45,29.82189682]
[1763301199524,0.72,139.51,139.45,30.26189682]
[1763301199731,0.72,139.51,139.45,22.6512]
[1763301200026,0.72,139.51,139.43,7.17203419]
[1763301200228,0.72,139.51,139.44,0.44]
[1763301200403,0.72,139.51,139.45,22.6512]
[1763301200607,0.72,139.51,139.46,7.17051484]
[1763301201330,0.72,139.51,139.46,7.61051484]
[1763301202823,7.8881077,139.51,139.45,29.8220546]
[1763301203204,0.72,139.51,139.45,30.2620546]
[1763301203934,7.88796032,139.51,139.45,30.2620546]
[1763301204333,0.72,139.51,139.45,30.2620546]
[1763301204633,0.72,139.51,139.46,0.44]
[1763301204827,0.72,139.51,139.46,7.61029574]
[1763301205428,7.16747655,139.52,139.47,0.44]
[1763301205835,0.72,139.53,139.47,0.44]
[1763301205836,7.88708005,139.53,139.47,0.44]
[1763301206015,0.72,139.53,139.47,0.44]
[1763301206713,7.88701606,139.53,139.47,0.44]
[1763301207019,7.88701606,139.53,139.47,7.60974876]
[1763301209526,0.72,139.53,139.47,25.53475055]
[1763301210607,0.72,139.53,139.48,22.6512]
[1763301211235,0.72,139.53,139.48,23.0912]
[1763301211622,0.72,139.53,139.49,7.16897268]
[1763301217453,0.92,139.56,139.5,0.44]
[1763301217736,0.72,139.55,139.5,7.6080578]
[1763301218633,0.72,139.55,139.5,47.55076152]
[1763301218834,0.72,139.55,139.5,25.52920475]
[1763301219139,0.72,139.55,139.51,0.44]
[1763301219721,0.72,139.55,139.48,0.44]
[1763301219924,7.8859223,139.55,139.49,23.0912]
[1763301220548,0.72,139.54,139.49,23.0912]
[1763301221246,0.72,139.54,139.5,7.16845878]
[1763301221868,0.72,139.54,139.49,30.25997778]
[1763301222847,0.72,139.54,139.5,0.44]
[1763301223049,0.72,139.54,139.49,48.18240949]
[1763301223573,0.72,139.54,139.49,7.60877778]
[1763301224084,0.2,139.56,139.5,0.44]
[1763301224371,0.2,139.56,139.55,22.6512]
[1763301224560,0.2,139.56,139.55,23.0912]
[1763301225366,0.2,139.56,139.55,40.04591805]
[1763301226065,0.2,139.56,139.55,30.25709036]
[1763301226450,0.89,139.56,139.51,22.6512]
[1763301226662,0.89,139.56,139.51,30.25896152]
[1763301226982,0.69,139.55,139.49,7.16897268]
[1763301227273,0.69,139.55,139.5,22.6512]
[1763301227479,7.85613058,139.55,139.5,22.6512]
[1763301227859,0.69,139.54,139.5,22.6512]
[1763301228047,0.69,139.54,139.5,29.8196471]
[1763301229183,0.69,139.54,139.5,22.6512]
[1763301230056,7.85643844,139.54,139.5,22.6512]
[1763301230467,0.69,139.53,139.5,22.6512]
[1763301231068,0.69,139.53,139.48,7.16948666]
[1763301231377,0.69,139.53,139.48,7.60948666]
[1763301232566,7.85703693,139.53,139.47,22.6512]
[1763301233082,0.69,139.52,139.47,22.6512]
[1763301233256,0.69,139.52,139.47,23.0912]
[1763301234473,7.85744348,139.52,139.47,30.26118659]
[1763301235282,0.69,139.52,139.47,30.26118659]
[1763301236377,0.69,139.52,139.47,30.26110359]
[1763301237061,0.69,139.52,139.47,0.44]